fUST/lending_fUST_20250217
["ID","MTS","AMOUNT","RATE_DAILY","PERIOD"]
[353342338,1739783432837,-6957.68638656,0.00012568,2]
[353342339,1739783432846,-500.0,0.00012577,2]
[353342340,1739783432855,-247.07,0.00012659,2]
[353342341,1739783432864,-165.0226108,0.00012746,2]
[353342342,1739783432873,-126.85528306,0.00013151,2]
[353342343,1739783432884,-24.14471694,0.00013151,2]
[353342344,1739783432894,-214.13756898,0.00013398,2]
[353342345,1739783432904,-300.0,0.00013399,2]
[353342346,1739783432913,-1967.1622648,0.000134,2]
[353342347,1739783432922,-94.55544928,0.000134,2]
[353342514,1739783438629,-500.0,0.000134,2]
[353342534,1739783438898,-3139.9,0.000134,2]
[353342535,1739783438909,-856.575,0.000134,2]
[353342536,1739783438920,-495.897,0.000134,2]
[353342537,1739783438931,-5.71479858,0.000134,2]
[353342538,1739783438940,-500.0,0.00013437,2]
[353342539,1739783438949,-500.0,0.00013437,2]
[353342540,1739783438958,-500.0,0.00013437,2]
[353342541,1739783438967,-500.0,0.00013437,2]
[353342542,1739783438976,-503.02758939,0.00013437,2]
[353342543,1739783438985,-500.0,0.00013437,2]
[353342544,1739783438995,-500.0,0.00013437,2]
[353342545,1739783439004,-500.0,0.00013437,2]
[353342546,1739783439013,-500.0,0.00013437,2]
[353342547,1739783439022,-500.0,0.00013437,2]
[353342548,1739783439033,-500.0,0.00013437,2]
[353342549,1739783439042,-500.0,0.00013437,2]
[353342550,1739783439051,-511.23110889,0.00013437,2]
[353342551,1739783439061,-500.0,0.00013437,2]
[353342552,1739783439070,-500.0,0.00013437,2]
[353342553,1739783439079,-500.0,0.00013437,2]
[353342554,1739783439088,-500.0,0.00013437,2]
[353342555,1739783439097,-500.0,0.00013437,2]
[353342556,1739783439106,-500.0,0.00013437,2]
[353342557,1739783439115,-500.0,0.00013437,2]
[353342558,1739783439123,-500.0,0.00013437,2]
[353342559,1739783439132,-500.0,0.00013437,2]
[353342560,1739783439141,-500.0,0.00013437,2]
[353342561,1739783439151,-500.0,0.00013437,2]
[353342562,1739783439160,-500.0,0.00013437,2]
[353342563,1739783439169,-500.0,0.00013437,2]
[353342564,1739783439178,-533.43,0.00013437,2]
[353342565,1739783439187,-501.15554577,0.00013437,2]
[353342566,1739783439196,-502.60910499,0.00013437,2]
[353342567,1739783439205,-500.0,0.00013437,2]
[353342568,1739783439215,-500.0,0.00013437,2]
[353342569,1739783439224,-502.73627582,0.00013437,2]
[353342570,1739783439233,-500.0,0.00013437,2]
[353342571,1739783439242,-500.0,0.00013437,2]
[353342572,1739783439251,-500.0,0.00013437,2]
[353342573,1739783439260,-500.0,0.00013437,2]
[353342574,1739783439269,-500.0,0.00013437,2]
[353342575,1739783439278,-500.0,0.00013437,2]
[353342576,1739783439287,-500.0,0.00013437,2]
[353342577,1739783439297,-500.0,0.00013437,2]
[353342578,1739783439305,-624.1651244,0.00013437,2]
[353342579,1739783439315,-500.0,0.00013473,2]
[353342580,1739783439325,-500.0,0.00013473,2]
[353342581,1739783439334,-500.0,0.00013473,2]
[353342582,1739783439344,-500.0,0.00013473,2]
[353342583,1739783439353,-505.08104598,0.00013473,2]
[353342584,1739783439363,-500.0,0.00013473,2]
[353342585,1739783439373,-500.0,0.00013473,2]
[353342586,1739783439382,-7438.69753278,0.00013476,2]
[353342587,1739783439391,-310.799,0.0001348,2]
[353342588,1739783439401,-157.11166513,0.0001348,2]
[353342589,1739783439410,-500.0,0.00013499,2]
[353342590,1739783439419,-500.0,0.00013499,2]
[353342591,1739783439428,-500.0,0.00013499,2]
[353342592,1739783439438,-500.0,0.00013499,2]
[353342593,1739783439447,-300.0,0.00013499,2]
[353342594,1739783439456,-502.60293462,0.00013499,2]
[353342595,1739783439465,-500.0,0.00013499,2]
[353342596,1739783439475,-500.0,0.00013499,2]
[353342597,1739783439484,-175.16711978,0.00013499,2]
[353342598,1739783439493,-46147.39149289,0.000135,5]
[353342599,1739783439502,-69496.3315882,0.000135,5]
[353342600,1739783439511,-1115549.04450938,0.000135,2]
[353342605,1739783440856,-1213.8492496,0.000135,2]
[353342606,1739783440869,-852.60449556,0.000135,2]
[353342607,1739783440880,-318.63610174,0.000135,2]
[353342608,1739783440893,-25664.32538151,0.000135,2]
[353342609,1739783440906,-1140.38094111,0.000135,2]
[353342610,1739783440917,-949.91577191,0.000135,2]
[353342841,1739783443762,-7740.29413201,0.000135,2]
[353342847,1739783443820,-7461.05671462,0.000135,2]
[353342849,1739783443833,-8133.29999995,0.000135,2]
[353342851,1739783443845,-104616.97361545,0.000135,2]
[353342854,1739783443930,-2140.32299478,0.000135,2]
[353342855,1739783443942,-6375.90251016,0.000135,2]
[353342905,1739783446723,-10457.8704635,0.000135,2]
[353342907,1739783446734,-605.0,0.000135,2]
[353342909,1739783446745,-7216.08405556,0.000135,2]
[353342938,1739783447012,-10.27329394,0.000135,2]
[353342939,1739783447035,-394.0,0.000135,2]
[353342940,1739783447051,-2670.0,0.000135,2]
[353342941,1739783447064,-10880.17375272,0.000135,2]
[353343195,1739783449851,500.0,0.00011755,2]
[353343262,1739783525315,965.52664738,0.00012313,2]
[353343277,1739784426132,-197.38580063,0.000106,2]
[353343278,1739784432094,-952.71301361,0.000106,2]
[353343279,1739784432116,-247.86450713,0.00010707,2]
[353343280,1739784443107,-400.0,0.00010685,2]
[353343281,1739784443129,-589.23308977,0.00010707,2]
[353343282,1739784546131,-159.06464831,0.00010472,2]
[353343283,1739784553094,-240.93535169,0.00010472,2]
[353343284,1739784553116,-400.0,0.00010578,2]
[353343285,1739784553137,-1150.09881424,0.00011035,2]
[353343286,1739784553158,-1150.09881424,0.00011135,2]
[353343287,1739784553179,-1150.09881424,0.00011235,2]
[353343288,1739784553205,-1150.09881424,0.00011335,2]
[353343289,1739784553227,-1150.09881424,0.00011435,2]
[353343290,1739784553250,-1150.09881424,0.00011535,2]
[353343291,1739784553274,-300.0,0.00011571,2]
[353343292,1739784553298,-500.0,0.00011572,2]
[353343293,1739784553320,-566.13,0.00011572,2]
[353343294,1739784553343,-24900.0,0.00011573,2]
[353343295,1739784553365,-1150.09881424,0.00011635,2]
[353343296,1739784553385,-1150.09881424,0.00011735,2]
[353343297,1739784553406,-1150.09881424,0.00011835,2]
[353343298,1739784553427,-1150.09881424,0.00011935,2]
[353343299,1739784553448,-1150.09881424,0.00012035,2]
[353343300,1739784553470,-1150.09881424,0.00012135,2]
[353343301,1739784553491,-1150.09881424,0.00012235,2]
[353343302,1739784553514,-1150.09881424,0.00012335,2]
[353343303,1739784553534,-1150.09881424,0.00012435,2]
[353343304,1739784553556,-250.0,0.00012445,2]
[353343305,1739784553576,-1150.09881424,0.00012535,2]
[353343306,1739784553597,-1150.09881424,0.00012635,2]
[353343307,1739784553619,-300.0,0.00012708,2]
[353343308,1739784553640,-448.13317695,0.00012735,2]
[353343309,1739784553672,-701.96563729,0.00012735,2]
[353343310,1739784553693,-1150.09881424,0.00012835,2]
[353343311,1739784553713,-203.7115574,0.000129,2]
[353343312,1739784553735,-203.71155735,0.000129,2]
[353343313,1739784553757,-1150.09881424,0.00012935,2]
[353343314,1739784553777,-1150.09881424,0.00013035,2]
[353343315,1739784553799,-618.06199474,0.00013135,2]
[353343316,1739784558106,-532.0368195,0.00013135,2]
[353343317,1739784558126,-151.0,0.00013151,2]
[353343318,1739784558147,-1150.09881424,0.00013235,2]
[353343319,1739784558168,-1150.09881424,0.00013335,2]
[353343320,1739784558189,-203.71155735,0.00013354,2]
[353343321,1739784558220,-1224.11625547,0.00013399,2]
[353343322,1739784565090,-188.68842104,0.00013003,2]
[353343385,1739784638326,-150.56,0.00010959,2]
[353343386,1739784638336,-752.83,0.00010959,2]
[353343387,1739784638347,-500.0,0.00011572,2]
[353343388,1739784638357,-500.0,0.00011655,2]
[353343389,1739784638366,-199.71989646,0.00011737,2]
[353343390,1739784638376,-343.34839846,0.00012873,2]
[353343391,1739784638386,-343.34839846,0.00013003,2]
[353343392,1739784638397,-7438.69753278,0.00013399,2]
[353343393,1739784638406,-1311.44150986,0.000134,2]
[353343394,1739784638416,-4583.94950295,0.000134,2]
[353343395,1739784638427,-1150.09881424,0.00013435,2]
[353343396,1739784638436,-500.0,0.00013435,2]
[353343397,1739784638446,-500.0,0.00013435,2]
[353343398,1739784638457,-500.0,0.00013435,2]
[353343399,1739784638467,-500.0,0.00013435,2]
[353343400,1739784638476,-500.0,0.00013435,2]
[353343401,1739784638485,-511.23110889,0.00013435,2]
[353343402,1739784638495,-500.0,0.00013435,2]
[353343403,1739784638504,-500.0,0.00013435,2]
[353343404,1739784638514,-500.0,0.00013435,2]
[353343405,1739784638524,-500.0,0.00013435,2]
[353343406,1739784638533,-500.0,0.00013435,2]
[353343407,1739784638542,-500.0,0.00013435,2]
[353343408,1739784638552,-500.0,0.00013435,2]
[353343409,1739784638562,-533.43,0.00013435,2]
[353343410,1739784638571,-500.0,0.00013435,2]
[353343411,1739784638580,-500.0,0.00013435,2]
[353343412,1739784638590,-502.73627582,0.00013435,2]
[353343413,1739784638604,-500.0,0.00013435,2]
[353343414,1739784638614,-500.0,0.00013435,2]
[353343415,1739784638625,-500.0,0.00013435,2]
[353343416,1739784638635,-500.0,0.00013435,2]
[353343417,1739784638645,-500.0,0.00013435,2]
[353343418,1739784638655,-500.0,0.00013435,2]
[353343419,1739784638665,-500.0,0.00013435,2]
[353343420,1739784638676,-624.1651244,0.00013435,2]
[353343421,1739784638685,-500.0,0.00013473,2]
[353343422,1739784638694,-157.11166513,0.00013473,2]
[353343423,1739784638704,-505.08104598,0.00013473,2]
[353343424,1739784638714,-500.0,0.00013473,2]
[353343425,1739784638723,-500.0,0.00013473,2]
[353343426,1739784638733,-500.0,0.00013473,2]
[353343427,1739784638744,-500.0,0.00013473,2]
[353343428,1739784638754,-310.799,0.00013473,2]
[353343429,1739784638763,-500.0,0.00013498,2]
[353343430,1739784638774,-500.0,0.00013498,2]
[353343431,1739784638782,-503.02758939,0.00013498,2]
[353343432,1739784638792,-500.0,0.00013498,2]
[353343433,1739784638802,-500.0,0.00013498,2]
[353343434,1739784638812,-500.0,0.00013498,2]
[353343435,1739784638822,-500.0,0.00013498,2]
[353343436,1739784638832,-500.0,0.00013498,2]
[353343437,1739784638841,-500.0,0.00013498,2]
[353343438,1739784638856,-500.0,0.00013498,2]
[353343439,1739784638865,-500.0,0.00013498,2]
[353343440,1739784638875,-501.15554577,0.00013498,2]
[353343441,1739784638885,-502.60910499,0.00013498,2]
[353343442,1739784638894,-500.0,0.00013499,2]
[353343443,1739784638904,-500.0,0.00013499,2]
[353343444,1739784638914,-300.0,0.00013499,2]
[353343445,1739784638923,-502.60293462,0.00013499,2]
[353343446,1739784638933,-500.0,0.00013499,2]
[353343447,1739784638942,-500.0,0.00013499,2]
[353343448,1739784638952,-500.0,0.00013499,2]
[353343449,1739784638961,-500.0,0.00013499,2]
[353343450,1739784638970,-56946.89881019,0.000135,5]
[353343451,1739784638979,-1127618.42477671,0.000135,2]
[353343452,1739784638989,-40477.357806,0.000135,2]
[353343483,1739784642830,-500.0,0.00011572,2]
[353343484,1739784642839,-49003.0,0.000135,5]
[353343485,1739784642885,-1360.45,0.000135,5]
[353343499,1739784645760,-1545.21236824,0.00013365,2]
[353343500,1739784645818,-890.56678201,0.00013365,2]
[353343501,1739784645828,-81.46899205,0.000135,5]
[353343502,1739784645875,-2767.46206025,0.000135,5]
[353343503,1739784645887,-5444.59834598,0.000135,5]
[353343508,1739785644120,-234.64133232,0.00010464,2]
[353343509,1739785644143,-80.59663975,0.0001057,2]
[353343510,1739785645137,-154.04469257,0.0001057,2]
[353343511,1739785645159,-295.95530743,0.00010685,2]
[353343512,1739785652094,-104.04469257,0.00010685,2]
[353343513,1739785652118,-97.03257042,0.00011405,2]
[353343515,1739785750161,-232.14156288,0.00011291,2]
[353343516,1739785750183,-232.14156288,0.00011405,2]
[353343517,1739785750204,-300.0,0.00011555,2]
[353343518,1739785750226,-500.0,0.00011556,2]
[353343519,1739785750249,-500.0,0.00011556,2]
[353343520,1739785750270,-500.0,0.00011556,2]
[353343521,1739785750292,-500.0,0.00011556,2]
[353343522,1739785750316,-375.33110254,0.00011556,2]
[353343523,1739785750337,-500.0,0.00011556,2]
[353343524,1739785750360,-489.4540973,0.00011556,2]
[353343525,1739785750382,-503.02758939,0.00011556,2]
[353343526,1739785750403,-500.0,0.00011556,2]
[353343527,1739785750428,-500.0,0.00011556,2]
[353343528,1739785750449,-500.0,0.00011556,2]
[353343529,1739785750471,-500.0,0.00011556,2]
[353343530,1739785750493,-500.0,0.00011556,2]
[353343531,1739785750515,-500.0,0.00011556,2]
[353343532,1739785750538,-500.0,0.00011556,2]
[353343533,1739785750565,-500.0,0.00011556,2]
[353343534,1739785750589,-24900.0,0.00011557,2]
[353343535,1739785750613,-500.0,0.00011572,2]
[353343536,1739785750636,-500.0,0.00011638,2]
[353343537,1739785750661,-589.84,0.00011638,2]
[353343538,1739785750684,-500.0,0.00011638,2]
[353343539,1739785750711,-500.0,0.00011638,2]
[353343540,1739785750733,-500.0,0.00011655,2]
[353343541,1739785750755,-500.0,0.00011721,2]
[353343542,1739785750777,-367.4,0.00011721,2]
[353343543,1739785750801,-500.0,0.00011721,2]
[353343544,1739785750824,-500.0,0.00011737,2]
[353343545,1739785750849,-500.0,0.00011803,2]
[353343546,1739785750873,-500.0,0.00011803,2]
[353343547,1739785750896,-500.0,0.00011819,2]
[353343548,1739785750919,-634.27,0.00011885,2]
[353343549,1739785750943,-500.0,0.00011885,2]
[353343550,1739785750966,-500.0,0.00011901,2]
[353343551,1739785750990,-500.0,0.00011967,2]
[353343552,1739785751012,-121.78067899,0.00011983,2]
[353343553,1739785755208,-232.14156288,0.00011178,2]
[353343554,1739785755229,-506.40631908,0.00011556,2]
[353343555,1739785755251,-378.21932101,0.00011983,2]
[353343556,1739785755272,-78.65555642,0.00012049,2]
[353343557,1739785755303,-421.34444358,0.00012049,2]
[353343558,1739785755324,-496.60168818,0.00012066,2]
[353343559,1739785755345,-628.74,0.00012132,2]
[353343560,1739785760783,191.55312914,0.00011556,2]
[353343561,1739785767078,-308.44687086,0.00011556,2]
[353343562,1739785767102,-181.55312914,0.00011638,2]
[353343563,1739785772074,-308.44687086,0.0001144,2]
[353343564,1739785772096,-500.0,0.00011556,2]
[353343565,1739785772120,-194.82672197,0.00011638,2]
[353343566,1739785772141,-420.0,0.00012691,2]
[353343567,1739785772163,-169.75963115,0.000129,2]
[353343568,1739785772187,-169.75963112,0.000129,2]
[353343569,1739785772210,-500.0,0.0001339,2]
[353343570,1739785772235,-500.0,0.0001339,2]
[353343571,1739785772258,-500.0,0.0001339,2]
[353343572,1739785772280,-500.0,0.0001339,2]
[353343573,1739785772301,-522.81,0.0001339,2]
[353343574,1739785772322,-633.058219,0.0001339,2]
[353343575,1739785772343,-226.1,0.0001339,2]
[353343576,1739785772366,-500.0,0.0001339,2]
[353343577,1739785772388,-519.59,0.0001339,2]
[353343578,1739785772413,-158.93,0.0001339,2]
[353343579,1739785772435,-500.0,0.0001339,2]
[353343580,1739785772456,-500.0,0.0001339,2]
[353343581,1739785772478,-24.56172416,0.0001339,2]
[353343584,1739785832305,-877.28995412,0.00010923,2]
[353343585,1739785832317,-877.28995412,0.00011023,2]
[353343586,1739785832327,-877.28995412,0.00011123,2]
[353343587,1739785832338,-877.28995412,0.00011223,2]
[353343588,1739785832348,-877.28995412,0.00011323,2]
[353343589,1739785832358,-877.28995412,0.00011423,2]
[353343590,1739785832368,-877.28995412,0.00011523,2]
[353343591,1739785832379,-500.0,0.00011556,2]
[353343592,1739785832389,-501.67176249,0.00011556,2]
[353343593,1739785832398,-501.16438126,0.00011556,2]
[353343594,1739785832408,-500.88439611,0.00011556,2]
[353343595,1739785832418,-501.88547733,0.00011556,2]
[353343596,1739785832429,-500.0,0.00011556,2]
[353343597,1739785832439,-501.85760944,0.00011556,2]
[353343598,1739785832451,-623.44691273,0.00011556,2]
[353343599,1739785832462,-501.15554577,0.00011556,2]
[353343600,1739785832473,-502.60910499,0.00011556,2]
[353343601,1739785832482,-877.28995412,0.00011623,2]
[353343602,1739785832491,-802.91715636,0.00011723,2]
[353343709,1739785838521,-74.37279776,0.00011723,2]
[353343711,1739785838530,-877.28995412,0.00011823,2]
[353343713,1739785838540,-877.28995412,0.00011923,2]
[353343715,1739785838549,-877.28995412,0.00012023,2]
[353343717,1739785838559,-877.28995412,0.00012123,2]
[353343719,1739785838568,-877.28995412,0.00012223,2]
[353343721,1739785838577,-877.28995412,0.00012323,2]
[353343723,1739785838587,-877.28995412,0.00012423,2]
[353343725,1739785838596,-877.28995412,0.00012523,2]
[353343727,1739785838606,-877.28995412,0.00012623,2]
[353343729,1739785838616,-877.28995412,0.00012723,2]
[353343731,1739785838625,-877.28995412,0.00012823,2]
[353343733,1739785838635,-877.28995412,0.00012923,2]
[353343735,1739785838646,-877.28995412,0.00013023,2]
[353343737,1739785838659,-877.28995412,0.00013123,2]
[353343739,1739785838668,-877.28995412,0.00013223,2]
[353343741,1739785838677,-2646.82400802,0.00013256,2]
[353343743,1739785838687,-583.89039926,0.00013259,2]
[353343745,1739785838697,-500.0,0.00013259,2]
[353343747,1739785838707,-500.0,0.00013259,2]
[353343749,1739785838716,-500.0,0.00013259,2]
[353343751,1739785838726,-500.0,0.00013259,2]
[353343753,1739785838736,-500.0,0.00013259,2]
[353343755,1739785838745,-500.0,0.00013259,2]
[353343757,1739785838755,-502.60293462,0.00013259,2]
[353343759,1739785838764,-300.0,0.00013259,2]
[353343761,1739785838773,-1231229.59133643,0.0001326,2]
[353343901,1739785840321,-216.81523104,0.0001326,5]
[353343903,1739785840332,-455.147,0.0001326,5]
[353344198,1739785843143,-10833.2992873,0.0001326,5]
[353344202,1739785843213,-999.93346418,0.0001326,5]
[353344203,1739785843229,-488.41426019,0.0001326,5]
[353344204,1739785843241,-31566.60825081,0.0001326,5]
[353344205,1739785843250,-219235.6659305,0.0001326,2]
[353344871,1739786195302,-2500.0,0.00010889,2]
[353344872,1739786224800,-300.0,0.00011555,2]
[353344873,1739786224836,-500.0,0.00011556,2]
[353344874,1739786224871,-500.0,0.00011556,2]
[353344875,1739786224907,-500.0,0.00011556,2]
[353344876,1739786224942,-533.335219,0.00011556,2]
[353344877,1739786224975,-500.0,0.00011556,2]
[353344878,1739786225011,-421.811781,0.00011556,2]
[353344879,1739786225043,-511.23110889,0.00011556,2]
[353344880,1739786225077,-500.0,0.00011556,2]
[353344881,1739786225111,-500.0,0.00011556,2]
[353344882,1739786225253,-500.0,0.00011556,2]
[353344883,1739786225302,-500.0,0.00011556,2]
[353344884,1739786225344,-500.0,0.00011556,2]
[353344885,1739786225383,-500.0,0.00011556,2]
[353344886,1739786225422,-500.0,0.00011556,2]
[353344887,1739786225461,-500.0,0.00011556,2]
[353344888,1739786225497,-500.0,0.00011556,2]
[353344889,1739786225532,-500.0,0.00011556,2]
[353344890,1739786225566,-500.0,0.00011556,2]
[353344891,1739786225602,-292.65,0.00011556,2]
[353344892,1739786225637,-440.97189111,0.00011556,2]
[353344893,1739786263061,-59.02810889,0.00011556,2]
[353344894,1739786263096,-500.0,0.00011556,2]
[353344895,1739786263130,-533.43,0.00011556,2]
[353344896,1739786263165,-500.0,0.00011556,2]
[353344897,1739786263201,-500.0,0.00011556,2]
[353344898,1739786263236,-502.73627582,0.00011556,2]
[353344899,1739786263271,-500.0,0.00011556,2]
[353344900,1739786263306,-475.43827584,0.00011556,2]
[353344901,1739786263338,-500.0,0.00011556,2]
[353344902,1739786263371,-500.0,0.00011556,2]
[353344903,1739786263407,-500.0,0.00011556,2]
[353344904,1739786263441,-500.0,0.00011556,2]
[353344905,1739786263474,-624.1651244,0.00011556,2]
[353344906,1739786263506,-500.0,0.00011638,2]
[353344907,1739786263539,-500.0,0.00011638,2]
[353344908,1739786263692,-500.0,0.00011638,2]
[353344909,1739786263726,-562.58,0.00011638,2]
[353344910,1739786263759,-500.0,0.00011638,2]
[353344911,1739786263793,-500.0,0.0001172,2]
[353344912,1739786263829,-500.0,0.0001172,2]
[353344913,1739786263865,-242.62221505,0.00011721,2]
[353344916,1739786746105,-196.50039088,0.00010685,2]
[353344918,1739786831095,-203.49960912,0.00010685,2]
[353344919,1739786831117,-300.0,0.00011579,2]
[353344920,1739786831284,-500.0,0.0001158,2]
[353344921,1739786831309,-619.93234066,0.0001158,2]
[353344922,1739786831333,-122.96761836,0.0001158,2]
[353344923,1739786839204,-377.03238164,0.0001158,2]
[353344924,1739786839230,-25.65688314,0.0001158,2]
[353344925,1739786844094,-820.93567214,0.0001158,2]
[353344927,1739786953101,-500.0,0.0001158,2]
[353344928,1739786953127,-302.9102537,0.0001158,2]
[353344929,1739786953156,-500.0,0.0001158,2]
[353344930,1739786953178,-318.23,0.0001158,2]
[353344931,1739786953199,-24053.40744472,0.0001158,2]
[353344932,1739786953219,-500.0,0.0001165,2]
[353344933,1739786953241,-500.0,0.00011662,2]
[353344934,1739786953262,-500.0,0.00011662,2]
[353344935,1739786953286,-500.0,0.00011744,2]
[353344936,1739786953307,-228.54,0.00011744,2]
[353344937,1739786953329,-500.0,0.00011826,2]
[353344938,1739786953351,-381.27617112,0.00011909,2]
[353344939,1739786956097,-216.15590361,0.0001158,2]
[353344940,1739786956121,-500.0,0.00012198,2]
[353344941,1739786956148,-169.75963112,0.000129,2]
[353344942,1739786956170,-433.0495555,0.00013068,2]
[353344943,1739786956191,-309.2674972,0.00013068,2]
[353344944,1739786956211,-153.0,0.00013068,2]
[353344945,1739786956232,-153.0,0.00013068,2]
[353344946,1739786956254,-268.2072901,0.00013152,2]
[353344947,1739786956278,-4922.36223858,0.0001316,2]
[353344948,1739786973122,-33716.01316091,0.0001316,2]
[353344949,1739786973148,-500.0,0.00013258,2]
[353344950,1739786973174,-500.0,0.00013258,2]
[353344951,1739786973196,-500.0,0.00013258,2]
[353344952,1739786973218,-220.7,0.00013258,2]
[353344953,1739786973241,-234.53,0.00013258,2]
[353344954,1739786973264,-413.91,0.00013258,2]
[353344955,1739786973288,-500.0,0.00013258,2]
[353344956,1739786973312,-489.25,0.00013258,2]
[353344957,1739786973335,-371.26,0.00013258,2]
[353344958,1739786973358,-500.0,0.00013258,2]
[353344959,1739786973381,-353.64,0.00013258,2]
[353344960,1739786973402,-500.0,0.00013258,2]
[353344961,1739786973424,-500.0,0.00013258,2]
[353344962,1739786973445,-310.799,0.00013259,2]
[353344963,1739786973467,-157.11166513,0.00013259,2]
[353344964,1739786973490,-500.0,0.00013259,2]
[353344965,1739786973514,-500.0,0.00013259,2]
[353344966,1739786973536,-193.1674669,0.00013259,2]
[353344967,1739786973558,-500.0,0.00013259,2]
[353344968,1739786973580,-500.0,0.00013259,2]
[353344969,1739786973601,-500.0,0.00013259,2]
[353344970,1739786973623,-500.0,0.00013259,2]
[353344971,1739786973645,-500.0,0.00013259,2]
[353344972,1739786973668,-500.0,0.00013259,2]
[353344973,1739786973689,-500.0,0.00013259,2]
[353344974,1739786973711,-500.0,0.00013259,2]
[353344975,1739786973734,-500.0,0.00013259,2]
[353344976,1739786973758,-500.0,0.00013259,2]
[353344977,1739786973781,-521.03798722,0.00013259,2]
[353344978,1739786973804,-500.0,0.00013259,2]
[353344979,1739786973825,-500.0,0.00013259,2]
[353344980,1739786973847,-500.0,0.00013259,2]
[353344981,1739786973872,-500.0,0.00013259,2]
[353344982,1739786973895,-500.0,0.00013259,2]
[353344983,1739786973920,-500.0,0.00013259,2]
[353344984,1739786973942,-500.0,0.00013259,2]
[353344985,1739786973966,-388.26871952,0.00013259,2]
[353344986,1739786973987,-500.0,0.00013259,2]
[353344987,1739786974009,-333.5277449,0.00013259,2]
[353344988,1739786974149,-377121.22725527,0.0001326,2]
[353345054,1739787038532,-500.0,0.0001158,2]
[353345056,1739787038542,-500.0,0.0001158,2]
[353345058,1739787038551,-500.0,0.00011662,2]
[353345060,1739787038561,-589.43470767,0.00011662,2]
[353345062,1739787038571,-562.45776555,0.00011744,2]
[353345064,1739787038580,-501.23809456,0.00013258,2]
[353345066,1739787038590,-500.42771957,0.00013258,2]
[353345068,1739787038599,-5516.35756323,0.0001326,2]
[353345375,1739787046249,-403.54417991,0.0001326,2]
[353346564,1739788027134,-400.0,0.00010685,2]
[353346565,1739788027156,-197.38580063,0.00012193,2]
[353346566,1739788027178,-712.0266112,0.00012316,2]
[353346567,1739788027200,-775.6536273,0.0001251,2]
[353346568,1739788027221,-169.75963112,0.00013173,2]
[353346569,1739788027244,-248.639,0.0001326,2]
[353346570,1739788027265,-199.10778495,0.0001326,2]
[353346571,1739788027287,-500.0,0.0001326,2]
[353346572,1739788027311,-4746.70475895,0.0001326,2]
[353346573,1739788036113,-171.13263881,0.0001326,2]
[353346574,1739788039118,-528.69239761,0.0001326,2]
[353346575,1739788040170,-174.63995681,0.0001326,2]
[353346576,1739788044091,-188.68842104,0.00013128,2]
[353346577,1739788044115,-8.69737959,0.0001326,2]
[353346586,1739788153095,-25607.2161277,0.00012222,3]
[353346587,1739788170083,-675.33385766,0.00012222,3]
[353346605,1739788232572,-159.06464831,0.00013097,2]
[353346606,1739788232582,-169.75963112,0.00013173,2]
[353346607,1739788232591,-299.56279388,0.00013229,2]
[353346608,1739788232603,-3678.32967492,0.00013229,2]
[353346609,1739788232612,-300.0,0.00013259,2]
[353346610,1739788232621,-500.0,0.0001326,2]
[353346611,1739788232631,-500.0,0.0001326,2]
[353346612,1739788232641,-500.0,0.0001326,2]
[353346613,1739788232651,-500.0,0.0001326,2]
[353346614,1739788232661,-26648.09789391,0.0001326,2]
[353346629,1739788238718,-883.25302379,0.0001326,5]
[353346671,1739788243592,-754.24354694,0.0001326,5]
[353346673,1739788243604,-20642.61217603,0.0001326,5]
[353346675,1739788243614,-171561.11591381,0.0001326,2]